bitfinex-derivatives/quotes_SOLF0:USTF0_20240902
["timestamp","ask_amount","ask_price","bid_price","bid_amount"]
[1725239207703,0.05198185,129.32,129.31,3.8664]
[1725239208595,34.83520633,129.39,129.32,3.8659]
[1725239208796,2.8732,129.4,129.32,29.69]
[1725239209187,3.8641,129.39,129.34,3.8654]
[1725239209585,6.77012236,129.4,129.35,0.05893248]
[1725239209586,0.05739769,129.38,129.35,0.05893248]
[1725239214395,3.92179769,129.38,129.35,0.05893248]
[1725239216897,0.05739769,129.38,129.35,0.05893248]
[1725239217295,3.8649,129.36,129.35,0.05893248]
[1725239218596,3.8654,129.35,129.14,40.25522153]
[1725239218805,3.8654,129.35,129.3,3.8666]
[1725239219002,1.4603,129.37,129.26,29.69]
[1725239219003,29.69,129.36,129.26,29.69]
[1725239219202,31.1444,129.36,129.26,29.69]
[1725239219405,31.1444,129.36,129.27,3.8674]
[1725239219703,3.8664,129.32,129.3,0.05020541]
[1725239219901,3.80343201,129.32,129.3,0.05020541]
[1725239220496,3.8664,129.31,129.3,0.05020541]
[1725239222304,29.69,129.31,129.24,3.85522145]
[1725239222506,29.69,129.31,129.23,3.81573345]
[1725239222807,1.3939,129.3,129.22,29.69]
[1725239223006,1.3939,129.3,129.22,30.2902]
[1725239223312,5.2608,129.3,129.25,3.868]
[1725239223603,5.2608,129.3,129.22,0.6002]
[1725239223604,0.05225099,129.27,129.22,0.6002]
[1725239223803,3.92005099,129.27,129.21,34.10807602]
[1725239224011,3.92005099,129.27,129.21,3.91547602]
[1725239224205,0.05225099,129.27,129.2,23.76]
[1725239224405,3.868,129.26,129.22,3.869]
[1725239224718,0.05225099,129.27,129.22,7.699536]
[1725239225099,3.91995099,129.27,129.22,7.699536]
[1725239225298,0.05225099,129.27,129.22,3.869]
[1725239225497,3.92005099,129.27,129.22,3.869]
[1725239227411,3.8685,129.25,129.2,3.8695]
[1725239227719,0.05810443,129.24,129.19,33.50560686]
[1725239228013,0.05810443,129.24,129.23,3.8688]
[1725239228206,0.05887701,129.25,129.21,29.7]
[1725239228400,5.2608,129.3,129.26,3.8679]
[1725239228708,1.3939,129.3,129.26,3.8679]
[1725239228918,1.3939,129.3,129.23,29.7]
[1725239229214,1.3939,129.3,129.24,3.8684]
[1725239229405,0.05186282,129.28,129.26,0.05584805]
[1725239230212,0.05186282,129.28,129.27,3.8676]
[1725239230412,3.8663,129.32,129.26,0.05584805]
[1725239230604,29.7,129.35,129.26,0.05584805]
[1725239230913,3.8657,129.34,129.27,29.7]
[1725239231111,2.7321,129.36,129.27,29.7]
[1725239231307,3.8653,129.35,129.27,29.7]
[1725239231506,0.0535481,129.32,129.3,0.04880012]
[1725239231703,344.3725,129.39,129.31,29.7]
[1725239232011,3.8646,129.38,129.33,3.8656]
[1725239232319,1.3725,129.39,129.33,3.8656]
[1725239232815,0.05517583,129.37,129.35,0.04933149]
[1725239236722,0.05517583,129.37,129.36,3.8649]
[1725239237019,29.7,129.43,129.35,0.04933149]
[1725239237224,29.7,129.43,129.33,30.3003]
[1725239237424,3.8632,129.42,129.37,3.8644]
[1725239237918,1.3377,129.44,129.32,3.87879022]
[1725239237919,29.75695098,129.41,129.38,0.05628394]
[1725239238221,29.7,129.41,129.31,29.7]
[1725239238423,7.79766101,129.4,129.31,33.54989952]
[1725239238819,3.93376101,129.4,129.31,33.54989952]
[1725239239025,3.93376101,129.4,129.34,3.91414631]
[1725239239026,3.8641,129.39,129.34,3.91414631]
[1725239239214,0.05526382,129.37,129.34,3.91414631]
[1725239239618,3.91996382,129.37,129.34,0.04884631]
[1725239241319,0.05526382,129.37,129.34,0.04884631]
[1725239241922,3.8652,129.35,129.34,0.04884631]
[1725239242431,0.05526382,129.37,129.34,0.04884631]
[1725239243017,3.865,129.36,129.34,0.04884631]
[1725239245228,1.47176382,129.37,129.34,0.04884631]
[1725239245527,31.1165,129.37,129.28,3.92578275]
[1725239245728,3.8658,129.34,129.26,29.7]
[1725239245929,3.8658,129.34,129.26,23.77]
[1725239246327,3.8658,129.34,129.29,3.867]
[1725239246523,0.04979203,129.31,129.29,0.05755084]
[1725239247029,3.8667,129.3,129.29,0.05755084]
[1725239247229,1.3417,129.31,129.23,23.77]
[1725239247532,3.8667,129.3,129.25,3.868]
[1725239247730,3.8667,129.3,129.23,23.77]
[1725239247931,1.3417,129.31,129.22,29.69]
[1725239248131,0.05717823,129.28,129.25,0.05329161]
[1725239248929,0.05717823,129.28,129.27,3.8676]
[1725239249431,1.4141,129.32,129.26,29.69]
[1725239249625,31.1128,129.37,129.27,2.56819296]
[1725239249823,1.4471,129.36,129.26,29.69]
[1725239250245,1.4471,129.36,129.27,2.56890174]
[1725239250439,3.91512081,129.33,129.3,0.04968222]
[1725239250827,0.04922081,129.33,129.3,0.04968222]
[1725239251235,0.04922081,129.33,129.3,3.91638222]
[1725239251743,0.04922081,129.33,129.3,0.04968222]
[1725239252046,0.04922081,129.33,129.3,29.73968222]
[1725239252235,0.04922081,129.33,129.32,3.8661]
[1725239252435,0.04922081,129.33,129.32,7.6380366]
[1725239252930,224.1379,129.4,129.32,33.4619366]
[1725239253133,29.69,129.41,129.32,3.7719366]
[1725239253337,3.8648,129.37,129.3,29.69]
[1725239253533,3.8648,129.37,129.33,3.8657]
[1725239253934,0.05363249,129.36,129.34,0.05500147]
[1725239254433,0.05363249,129.36,129.34,3.92050147]
[1725239255830,0.05363249,129.36,129.35,3.8652]
[1725239257032,1.4063,129.43,129.36,3.8647]
[1725239257237,1.4063,129.43,129.36,29.69]
[1725239257640,1.4063,129.43,129.38,3.8641]
[1725239257844,1.4063,129.43,129.36,29.69]
[1725239258242,0.05677383,129.41,129.39,3.8638]
[1725239258438,0.05677383,129.41,129.38,0.05153506]
[1725239258642,33.5516,129.48,129.38,29.74153506]
[1725239258940,33.5516,129.48,129.4,29.69]
[1725239258941,3.8616,129.48,129.4,29.69]
[1725239259146,7.71542059,129.48,129.43,3.8626]
[1725239259354,3.8616,129.48,129.41,3.83759561]
[1725239259540,2.7769,129.49,129.4,29.69]
[1725239259741,2.7769,129.49,129.44,3.8623]
[1725239260039,0.05002465,129.46,129.43,0.05412004]
[1725239260938,0.05002465,129.46,129.43,3.91672004]
[1725239261744,0.05002465,129.46,129.44,3.8624]
[1725239262544,0.05002465,129.46,129.45,3.8623]
[1725239263247,3.8607,129.51,129.47,3.8616]
[1725239263750,5.1998,129.52,129.47,3.8616]
[1725239263947,2.8025,129.55,129.44,29.69]
[1725239264144,4.1421,129.55,129.44,29.69]
[1725239264344,4.1421,129.55,129.48,0.05686714]
[1725239264345,0.05521273,129.51,129.48,0.05686714]
[1725239264856,0.05521273,129.51,129.48,3.91806714]
[1725239265459,0.05521273,129.51,129.48,0.05686714]
[1725239267067,0.05521273,129.51,129.48,29.74686714]
[1725239267269,0.05521273,129.51,129.5,3.8608]
[1725239268159,0.05521273,129.51,129.48,33.69027356]
[1725239268669,0.05521273,129.51,129.49,3.8609]
[1725239268871,0.05521273,129.51,129.48,4.00027356]
[1725239269368,0.05521273,129.51,129.5,3.8608]
[1725239270473,0.05521273,129.51,129.49,3.8609]
[1725239273660,0.05521273,129.51,129.5,3.8608]
[1725239274271,0.05521273,129.51,129.49,3.861]
[1725239274873,0.05521273,129.51,129.48,7.86157356]
[1725239275072,0.05521273,129.51,129.48,4.00027356]
[1725239275573,0.05521273,129.51,129.5,3.8608]
[1725239276366,3.8588,129.57,129.53,3.8596]
[1725239277167,3.859,129.56,129.53,3.8596]
[1725239277375,3.91305559,129.56,129.53,3.91357131]
[1725239278172,3.91305559,129.56,129.53,0.05397131]
[1725239278672,0.05405559,129.56,129.53,0.05397131]
[1725239278864,0.05405559,129.56,129.49,3.861]
[1725239279377,3.8596,129.54,129.5,3.8607]
[1725239279770,0.05066874,129.53,129.51,0.05714089]
[1725239282166,0.05066874,129.53,129.51,29.74714089]
[1725239282693,2.7825,129.59,129.51,29.74714089]
[1725239282694,2.7825,129.59,129.51,29.69]
[1725239282974,2.916,129.63,129.56,29.69]
[1725239283371,3.8578,129.61,129.56,33.5489]
[1725239283772,0.04950116,129.6,129.57,0.05760467]
[1725239284371,29.69,129.62,129.51,29.69]
[1725239285284,3.8589,129.57,129.52,7.78807532]
[1725239285485,0.04893676,129.56,129.53,0.05867223]
[1725239286380,3.90793676,129.56,129.53,0.05867223]
[1725239287477,3.8596,129.54,129.53,0.05867223]
[1725239288177,0.04893676,129.56,129.53,0.05867223]
[1725239289879,0.04893676,129.56,129.54,3.8594]
[1725239290485,0.04893676,129.56,129.53,29.74867223]
[1725239290685,0.04893676,129.56,129.53,0.05867223]
[1725239291579,3.90793676,129.56,129.53,0.05867223]
[1725239293082,0.04893676,129.56,129.53,0.05867223]
[1725239293687,3.8596,129.54,129.53,0.05867223]
[1725239293988,0.04893676,129.56,129.53,0.05867223]
[1725239294478,0.04893676,129.56,129.53,29.74867223]
[1725239295086,0.04893676,129.56,129.55,3.8593]
[1725239295287,0.04893676,129.56,129.53,29.74867223]
[1725239295882,0.04893676,129.56,129.54,3.8593]
[1725239298086,0.04893676,129.56,129.55,3.8593]
[1725239300093,0.04893676,129.56,129.55,33.5493]
[1725239302292,5.2123,129.64,129.58,29.69]
[1725239302587,239.5713,129.71,129.6,29.69]
[1725239302588,1.3267,129.67,129.6,29.69]
[1725239302893,1.3267,129.67,129.58,3.93441358]
[1725239302894,1.3267,129.67,129.62,29.69]
[1725239303288,0.05266515,129.66,129.64,3.8564]
[1725239304086,0.05266515,129.66,129.65,3.8563]
[1725239305597,0.05266515,129.66,129.63,3.97470313]
[1725239306600,0.05266515,129.66,129.64,3.8565]
[1725239308601,0.05266515,129.66,129.63,7.83150313]
[1725239308805,0.05266515,129.66,129.64,29.69]
[1725239309195,0.05266515,129.66,129.65,3.8563]
[1725239310402,0.05266515,129.66,129.63,3.97470313]
[1725239310801,0.05266515,129.66,129.63,0.05475249]
[1725239311304,0.05266515,129.66,129.64,3.8566]
[1725239311695,0.05266515,129.66,129.63,3.84889281]
[1725239312199,0.05266515,129.66,129.64,3.8564]
[1725239312405,0.05266515,129.66,129.63,33.53889281]
[1725239312796,0.05266515,129.66,129.65,3.8563]
[1725239314009,0.05266515,129.66,129.64,3.8565]
[1725239314301,0.05266515,129.66,129.63,33.53889281]
[1725239314493,0.05266515,129.66,129.63,37.39569281]
[1725239315198,0.05266515,129.66,129.64,3.8564]
[1725239315598,0.05266515,129.66,129.63,33.53889281]
[1725239316001,0.05266515,129.66,129.63,37.39569281]
[1725239316706,3.90876515,129.66,129.63,29.74475249]
[1725239317809,0.05266515,129.66,129.63,33.60165249]
[1725239318007,0.05266515,129.66,129.63,27.59165249]
[1725239319205,3.90866515,129.66,129.63,27.59165249]
[1725239319907,0.05266515,129.66,129.64,3.8564]
[1725239322309,0.05266515,129.66,129.65,27.5363]
[1725239322507,5.1813,129.71,129.65,23.68]
[1725239322807,1.3267,129.71,129.67,23.68]
[1725239323201,3.8549,129.7,129.67,23.68]
[1725239323603,3.8551,129.69,129.67,0.05554473]
[1725239323812,0.05370231,129.7,129.67,0.05554473]
[1725239324804,3.8554,129.69,129.67,0.05554473]
[1725239325299,0.05370231,129.7,129.67,0.05554473]
[1725239326307,3.8554,129.68,129.67,0.05554473]
[1725239326807,23.68,129.7,129.61,23.68]
[1725239327008,3.8562,129.66,129.62,3.857]
[1725239327215,1.3567,129.67,129.62,3.77111128]
[1725239327604,0.05428163,129.66,129.63,0.05452682]
[1725239327807,0.05428163,129.66,129.63,3.91132682]
[1725239328208,0.05428163,129.66,129.53,0.7045]
[1725239328512,0.05428163,129.66,129.58,23.68]
[1725239328513,23.68,129.66,129.58,23.68]
[1725239328813,3.8574,129.62,129.58,23.68]
[1725239329020,1.3875,129.65,129.58,23.68]
[1725239329415,3.91310463,129.63,129.6,0.05088729]
[1725239330611,0.05600463,129.63,129.6,3.90868729]
[1725239330912,0.05600463,129.63,129.61,23.68]
[1725239331718,1.3567,129.67,129.61,23.68]
[1725239332015,1.3436,129.7,129.64,23.68]
[1725239332214,5.29746514,129.7,129.64,23.68]
[1725239332421,1.3436,129.7,129.64,23.68]
[1725239332817,0.05596682,129.68,129.66,0.05543802]
[1725239333417,3.91156682,129.68,129.66,0.05543802]
[1725239334013,0.05596682,129.68,129.66,0.05543802]
[1725239334215,0.05596682,129.68,129.66,23.73543802]
[1725239335019,0.05596682,129.68,129.67,3.79125539]
[1725239335216,0.05596682,129.68,129.66,23.73543802]
[1725239336006,0.05596682,129.68,129.66,27.59123802]
[1725239336420,0.05596682,129.68,129.67,27.47481841]
[1725239336721,0.05596682,129.68,129.67,27.5357]
[1725239337218,0.05596682,129.68,129.67,23.68]
[1725239337420,0.05596682,129.68,129.66,27.59133802]
[1725239337823,0.05596682,129.68,129.67,7.63972344]
[1725239338522,0.05596682,129.68,129.66,27.59133802]
[1725239340425,0.05596682,129.68,129.66,23.73543802]
[1725239341118,0.05596682,129.68,129.66,27.59133802]
[1725239341825,0.05596682,129.68,129.67,3.8557]
[1725239342022,0.05596682,129.68,129.66,23.73543802]
[1725239342230,0.05596682,129.68,129.67,3.85196607]
[1725239342432,0.05596682,129.68,129.66,27.59133802]
[1725239344333,0.05596682,129.68,129.67,7.76703384]
[1725239344533,1.3862,129.73,129.67,23.68]
[1725239344735,247.8179,129.8,129.71,23.68]
[1725239345026,3.8535,129.75,129.71,27.5801542]
[1725239345618,0.05773019,129.74,129.72,3.90476341]
[1725239345834,6.67724393,129.79,129.73,23.68]
[1725239345835,1.4683,129.79,129.73,23.68]
[1725239346033,1.4535,129.81,129.77,23.68]
[1725239346727,1.4535,129.81,129.78,3.8522]
[1725239347028,1.50311614,129.81,129.78,3.9106109]
[1725239347229,0.04961614,129.81,129.79,27.62142581]
[1725239348324,1.4535,129.85,129.79,23.68]
[1725239348529,1.4535,129.85,129.82,23.68]
[1725239349036,1.4535,129.85,129.82,27.5312]
[1725239349232,1.4535,129.85,129.82,23.68]
[1725239349426,1.50635609,129.85,129.82,0.05489008]
[1725239349736,3.8511,129.83,129.78,23.68]
[1725239349933,3.8511,129.83,129.78,27.5322]
[1725239350132,1.4535,129.85,129.78,23.68]
[1725239350439,3.8512,129.83,129.76,23.68]
[1725239350626,0.05623366,129.81,129.78,3.8524]
[1725239350830,0.05623366,129.81,129.78,0.05610496]
[1725239351926,3.90783366,129.81,129.78,0.05610496]
[1725239353226,0.05623366,129.81,129.78,0.05610496]
[1725239353425,0.05623366,129.81,129.78,23.73610496]
[1725239353934,0.05623366,129.81,129.79,3.8519]
[1725239354332,0.05623366,129.81,129.78,23.73610496]
[1725239354535,0.05623366,129.81,129.78,27.58830496]
[1725239355439,0.05623366,129.81,129.79,3.8521]
[1725239355833,0.05623366,129.81,129.78,23.73610496]
[1725239356040,0.05623366,129.81,129.78,0.05610496]
[1725239357736,3.90783366,129.81,129.78,0.05610496]
[1725239358641,0.05623366,129.81,129.78,0.05610496]
[1725239359334,0.05623366,129.81,129.73,33.48326555]
[1725239359533,29.58,129.82,129.73,29.58]
[1725239359735,29.58,129.82,129.72,3.76646891]
[1725239359933,29.58,129.8,129.71,29.58]
[1725239360137,2.7267,129.79,129.71,29.58]
[1725239360344,3.8535,129.75,129.74,0.05456154]
[1725239360543,0.05385303,129.76,129.7,3.83581169]
[1725239360744,3.8534,129.75,129.7,3.8546]
[1725239361140,3.8534,129.75,129.69,29.58]
[1725239361438,3.8534,129.75,129.7,3.77687032]
[1725239361648,0.05843261,129.74,129.71,0.05888779]
[1725239362238,0.05843261,129.74,129.71,3.91318779]
[1725239362438,0.05843261,129.74,129.71,29.63888779]
[1725239363246,0.05843261,129.74,129.72,3.8542]
[1725239365341,0.05843261,129.74,129.71,29.63888779]
[1725239365743,0.05843261,129.74,129.71,0.05888779]
[1725239366146,3.91213261,129.74,129.71,0.05888779]
[1725239366639,0.05843261,129.74,129.71,0.05888779]
[1725239367741,0.05843261,129.74,129.66,29.58]
[1725239368040,29.58,129.76,129.67,3.88280647]
[1725239368237,29.58,129.76,129.68,3.8553]
[1725239368739,0.05790455,129.73,129.71,0.05380224]
[1725239369741,3.8542,129.72,129.71,0.05380224]
[1725239369941,0.05790455,129.73,129.71,0.05380224]
[1725239371842,3.91200455,129.73,129.71,0.05380224]
[1725239372644,0.05790455,129.73,129.71,0.05380224]
[1725239373851,3.91200455,129.73,129.71,0.05380224]
[1725239374349,0.05790455,129.73,129.71,0.05380224]
[1725239375248,3.91190455,129.73,129.71,0.05380224]
[1725239376555,0.05790455,129.73,129.71,0.05380224]
[1725239377447,0.05790455,129.73,129.71,3.90830224]
[1725239379449,0.05790455,129.73,129.71,0.05380224]
[1725239379847,3.8542,129.72,129.71,0.05380224]
[1725239381451,3.91190455,129.73,129.71,0.05380224]
[1725239384249,0.05790455,129.73,129.71,0.05380224]
[1725239385150,0.05790455,129.73,129.56,97.08755435]
[1725239385342,1.3798,129.78,129.62,23.7]
[1725239385546,1.3798,129.78,129.63,23.7]
[1725239385547,23.7,129.73,129.63,23.7]
[1725239385746,2.7249,129.72,129.64,3.8718008]
[1725239385953,3.8556,129.68,129.62,23.7]
[1725239386150,3.8556,129.68,129.64,0.05628149]
[1725239386456,0.05768857,129.66,129.64,3.97549209]
[1725239386849,0.05768857,129.66,129.65,23.7]
[1725239387551,0.05768857,129.66,129.64,0.05628149]
[1725239388154,0.05768857,129.66,129.65,3.90717754]
[1725239388753,0.05768857,129.66,129.64,3.91268149]
[1725239388951,0.05768857,129.66,129.64,0.05628149]
[1725239390052,0.05768857,129.66,129.64,3.88520755]
[1725239390250,0.05768857,129.66,129.64,0.05628149]
[1725239391452,0.05768857,129.66,129.64,7.77998043]
[1725239391653,0.05768857,129.66,129.64,3.91268149]
[1725239392157,0.05768857,129.66,129.64,7.78460685]
[1725239392560,0.05768857,129.66,129.65,3.8563]
[1725239396164,0.05768857,129.66,129.65,27.5563]
[1725239397071,3.8545,129.71,129.68,3.8554]
[1725239398155,3.90487592,129.71,129.68,3.90925573]
[1725239398666,0.05037592,129.71,129.57,4.20631584]
[1725239398968,23.7,129.7,129.61,23.7]
[1725239399164,23.7,129.68,129.59,23.7]
[1725239399666,3.8569,129.63,129.62,0.05557099]
[1725239400667,3.8574,129.62,129.56,23.7]
[1725239400870,3.8574,129.62,129.57,3.8585]
[1725239401162,1.3973,129.64,129.56,23.7]
[1725239401365,1.3973,129.64,129.56,27.62471459]
[1725239401560,1.3973,129.64,129.59,0.05145328]
[1725239401561,0.05235868,129.61,129.59,0.05145328]
[1725239402561,0.05235868,129.61,129.59,23.75145328]
[1725239403072,574.8619,129.73,129.59,23.75145328]
[1725239403073,23.7,129.7,129.59,23.75145328]
[1725239403262,3.80091021,129.69,129.61,23.7]
[1725239403771,3.8559,129.67,129.61,23.7]
[1725239404080,1.3654,129.69,129.61,23.7]
[1725239404273,0.05096054,129.65,129.64,3.8566]
[1725239404573,0.04983873,129.66,129.64,3.90705746]
[1725239404780,2.869,129.72,129.65,23.7]
[1725239404970,0.05457674,129.7,129.67,23.7538579]
[1725239405367,0.05457674,129.7,129.68,3.8552]
[1725239405875,0.05457674,129.7,129.67,23.7538579]
[1725239406477,0.05457674,129.7,129.68,3.8554]
[1725239407270,0.05457674,129.7,129.69,3.8551]
[1725239409374,1.4235,129.77,129.69,29.62]
[1725239409583,5.2763,129.77,129.69,29.62]
[1725239409778,5.2763,129.77,129.71,29.62]
[1725239410077,3.80154142,129.8,129.74,3.8536]
[1725239410277,2.8138,129.82,129.74,3.8536]
[1725239410278,3.91089805,129.78,129.76,0.04910078]
[1725239410476,0.05839805,129.78,129.76,0.04910078]
[1725239411181,3.8527,129.77,129.76,0.04910078]
[1725239411377,29.62,129.79,129.69,29.62]
[1725239412082,3.8532,129.76,129.71,3.8543]
[1725239412383,0.05383822,129.75,129.72,0.05612179]
[1725239412885,0.05383822,129.75,129.72,3.91022179]
[1725239418590,0.05383822,129.75,129.73,3.8539]
[1725239418984,0.05383822,129.75,129.72,0.05612179]
[1725239419480,0.05383822,129.75,129.72,29.67612179]
[1725239420481,0.05383822,129.75,129.74,33.4736]
[1725239420686,1.4464,129.81,129.74,29.62]
[1725239421182,1.4464,129.81,129.76,29.62]
[1725239421687,0.05883858,129.8,129.77,0.05871961]
[1725239421887,0.05883858,129.8,129.78,3.8524]
[1725239422185,0.05883858,129.8,129.77,0.05871961]
[1725239422779,0.05883858,129.8,129.78,3.8522]
[1725239424180,0.05883858,129.8,129.79,3.8521]
[1725239428187,0.05883858,129.8,129.77,0.05871961]
[1725239428686,0.05883858,129.8,129.77,3.91131961]
[1725239429489,0.05883858,129.8,129.77,0.05871961]
[1725239429883,30.9689,129.81,129.7,29.62]
[1725239430086,23.69,129.79,129.7,23.69]
[1725239430289,23.69,129.75,129.66,23.69]
[1725239430489,3.8542,129.72,129.66,23.69]
[1725239431079,0.05447422,129.7,129.69,3.8551]
[1725239431280,0.05908714,129.71,129.69,3.8551]
[1725239432894,0.05908714,129.71,129.7,3.8548]
[1725239434406,0.05908714,129.71,129.68,0.05694512]
[1725239434986,0.05908714,129.71,129.69,3.855]
[1725239435191,0.05908714,129.71,129.68,23.74694512]
[1725239435698,0.05908714,129.71,129.7,3.8548]
[1725239435897,0.05908714,129.71,129.68,23.74694512]
[1725239436193,0.05908714,129.71,129.69,3.855]
[1725239436395,0.05908714,129.71,129.68,23.74694512]
[1725239436896,0.05908714,129.71,129.7,3.8548]
[1725239438987,0.05908714,129.71,129.7,27.5448]
[1725239440599,5.3111,129.77,129.74,3.8535]
[1725239441303,1.4583,129.77,129.74,3.8535]
[1725239441501,1.3848,129.82,129.74,27.57798951]
[1725239441696,0.05011982,129.79,129.77,0.0546459]
[1725239443594,0.05011982,129.79,129.77,3.9073459]
[1725239443799,3.90231982,129.79,129.77,0.0546459]
[1725239446803,0.05011982,129.79,129.72,23.69]
[1725239446999,25.1483,129.81,129.72,23.69]
[1725239447195,3.853,129.77,129.73,3.8539]
[1725239447395,25.1483,129.81,129.72,23.69]
[1725239447893,3.8532,129.76,129.75,0.05255096]
[1725239449113,3.8529,129.77,129.75,0.05255096]
[1725239449404,3.92330705,129.77,129.75,0.05255096]
[1725239449599,23.69,129.79,129.7,23.69]
[1725239449801,1.4583,129.81,129.7,23.69]
[1725239449999,23.69,129.8,129.7,23.69]
[1725239450402,3.853,129.77,129.73,3.8539]
[1725239450805,0.05085031,129.76,129.74,0.05447627]
[1725239451008,0.05085031,129.76,129.75,3.8533]
[1725239451009,0.05550851,129.76,129.75,3.8533]
[1725239451610,1.4583,129.81,129.75,23.69]
[1725239451908,224.1379,129.85,129.77,23.69]
[1725239452104,23.69,129.86,129.77,23.69]
[1725239452409,2.7878,129.84,129.78,3.8523]
[1725239452707,0.05419781,129.82,129.8,0.05342969]
[1725239453406,0.05419781,129.82,129.74,23.69]
[1725239453596,3.8524,129.78,129.74,3.8535]
[1725239453804,23.69,129.81,129.72,27.6265801]
[1725239454201,3.8527,129.78,129.73,3.8538]
[1725239454402,0.05865177,129.77,129.74,0.05208009]
[1725239455001,3.91155177,129.77,129.74,0.05208009]
[1725239456116,0.05865177,129.77,129.74,0.05208009]
[1725239456713,0.05865177,129.77,129.74,3.90548009]
[1725239457316,0.05865177,129.77,129.74,0.05208009]
[1725239457514,3.8532,129.76,129.74,0.05208009]
[1725239457814,0.05865177,129.77,129.74,0.05208009]
[1725239458009,3.91145177,129.77,129.74,0.05208009]
[1725239458317,0.05865177,129.77,129.75,3.8533]
[1725239458613,0.05865177,129.77,129.74,0.05208009]
[1725239459113,0.05865177,129.77,129.75,3.8531]
[1725239460111,0.05865177,129.77,129.74,0.05208009]
[1725239461716,0.05865177,129.77,129.75,3.8531]
[1725239461923,0.05865177,129.77,129.75,29.6]
[1725239462313,0.05865177,129.77,129.76,3.853]
[1725239463213,0.05865177,129.77,129.74,0.05208009]
[1725239466321,3.91145177,129.77,129.74,0.05208009]
[1725239466718,0.05865177,129.77,129.74,0.05208009]
[1725239466925,0.05865177,129.77,129.75,3.8531]
[1725239467511,0.05865177,129.77,129.76,3.853]
[1725239467717,1.4458,129.82,129.75,29.6]
[1725239468521,5.2972,129.82,129.78,3.8524]
[1725239468718,0.05887071,129.81,129.78,3.8524]
[1725239468921,0.05887071,129.81,129.79,0.05751881]
[1725239469626,0.05887071,129.81,129.79,3.90961881]
[1725239469829,0.05887071,129.81,129.79,0.05751881]
[1725239471124,0.05887071,129.81,129.79,29.65751881]
[1725239471430,0.05887071,129.81,129.8,7.69626568]
[1725239472329,0.05887071,129.81,129.8,3.8518]
[1725239472827,3.8501,129.86,129.8,7.69780623]
[1725239473034,3.8501,129.86,129.82,3.8511]
[1725239473224,5.26070168,129.89,129.82,3.84600623]
[1725239473420,1.3446,129.89,129.82,3.84600623]
[1725239474126,0.05643966,129.87,129.84,0.04875033]
[1725239474327,3.8501,129.86,129.84,0.04875033]
[1725239475430,0.05643966,129.87,129.84,0.04875033]
[1725239476334,3.8501,129.86,129.84,0.04875033]
[1725239476529,0.05643966,129.87,129.84,0.04875033]
[1725239476736,0.05643966,129.87,129.77,33.48717751]
[1725239476936,29.6,129.88,129.77,29.6]
[1725239477137,29.6,129.86,129.76,3.8528]
[1725239477330,1.4537,129.85,129.76,3.8528]
[1725239477834,3.8515,129.81,129.79,0.05909669]
[1725239480336,3.92153457,129.82,129.79,0.05909669]
[1725239480337,3.8518,129.8,129.79,0.05909669]
[1725239482140,3.8517,129.81,129.79,0.05909669]
[1725239483740,3.92153457,129.82,129.79,0.05909669]
[1725239483741,3.8518,129.8,129.79,0.05909669]
[1725239487241,3.8516,129.81,129.79,0.05909669]
[1725239488241,3.8518,129.8,129.79,0.05909669]
[1725239488739,0.05348651,129.82,129.79,0.05909669]
[1725239489340,3.90478651,129.82,129.79,0.05909669]
[1725239489937,0.05348651,129.82,129.79,0.05909669]
[1725239490145,0.05348651,129.82,129.79,29.64909669]
[1725239490854,0.05348651,129.82,129.81,3.8515]
[1725239491447,0.05348651,129.82,129.81,33.4415]
[1725239495645,3.83288409,129.89,129.84,3.8506]
[1725239495944,1.4557,129.9,129.84,3.8506]
[1725239496144,3.8496,129.88,129.84,3.8506]
[1725239496443,3.85050831,129.89,129.83,7.64364491]
[1725239496645,0.05433553,129.87,129.85,0.04929072]
[1725239496845,3.90433553,129.87,129.85,0.04929072]
[1725239497249,0.05433553,129.87,129.85,0.04929072]
[1725239497453,0.05433553,129.87,129.79,29.59]
[1725239497653,1.378,129.87,129.79,29.59]
[1725239497846,3.8511,129.83,129.78,3.8523]
[1725239498043,30.968,129.87,129.78,3.8523]
[1725239498449,3.8515,129.82,129.81,0.05256235]
[1725239500047,1.4225,129.83,129.81,0.05256235]